fUST/lending_fUST_20260203
["ID","MTS","AMOUNT","RATE_DAILY","PERIOD"]
[404393624,1770096645206,-151.0,0.00039964,120]
[404393625,1770096645215,-151.0,0.00039964,120]
[404393626,1770096645224,-111.88976211,0.00039964,120]
[404393656,1770096684834,-296.83422438,0.00017999,2]
[404393657,1770096684863,-500.0,0.00017999,2]
[404393660,1770096700570,-186.47017027,0.00019626,2]
[404393663,1770096716367,-17.12133984,0.00022329,2]
[404393664,1770096716395,-728.75934125,0.00022329,2]
[404393669,1770096730499,285.89128994,0.00013273,2]
[404393671,1770096731678,649.01207514,0.00013273,2]
[404393688,1770096966538,500.0,0.00013699,2]
[404393689,1770096966640,820.12567473,0.00014247,2]
[404393843,1770097831911,-150.0,0.00024618,2]
[404393845,1770097831922,-1678.23153246,0.00024852,2]
[404393847,1770097831931,-2983.52272437,0.00026101,2]
[404393849,1770097831940,-384.73636996,0.0002611,2]
[404393851,1770097831950,-150.65872411,0.0002611,2]
[404393852,1770097831959,-177.0,0.00026618,2]
[404393854,1770097831969,-158.3221521,0.00026795,14]
[404393856,1770097831978,-300.0,0.00027731,2]
[404393857,1770097831987,-300.0,0.00027731,2]
[404393858,1770097831995,-225.0,0.00027731,2]
[404393859,1770097832004,-300.0,0.00027731,2]
[404393860,1770097832014,-1904.71285842,0.00027732,2]
[404393861,1770097832023,-204.0,0.00028618,2]
[404393862,1770097832032,-1000.0,0.00029073,30]
[404393863,1770097832042,-331.75745079,0.00030145,120]
[404393864,1770097832051,-526.50401018,0.0003282,5]
[404393865,1770097832060,-882.30690199,0.00032858,2]
[404393866,1770097832070,-161.6083464,0.000332,117]
[404393867,1770097832079,-740.91124423,0.00034002,2]
[404393868,1770097832088,-3357.33802387,0.00034587,2]
[404393869,1770097832098,-194.833,0.0003526,41]
[404393870,1770097832108,-19790.1285825,0.00035836,2]
[404393871,1770097832117,-150.65872411,0.00036641,2]
[404393872,1770097832128,-162.0,0.00037,120]
[404393873,1770097832138,-322.95304036,0.00039772,5]
[404393874,1770097832147,-209.47509151,0.00039864,12]
[404393875,1770097832155,-6712.63526851,0.00039956,120]
[404393903,1770097838107,-418.59952072,0.00039955,31]
[404393905,1770097838117,-272.73059165,0.00039955,31]
[404393907,1770097838126,-1021.54275697,0.00039956,120]
[404393909,1770097838137,-835.45976051,0.00039956,120]
[404394132,1770097840447,-940.2041603,0.00039956,120]
[404394380,1770097844897,-7070.69794995,0.00039956,120]
[404394381,1770097844934,-0.27829629,0.00039956,120]
[404394403,1770097846335,-3019.1865239,0.00039956,120]
[404394404,1770097846347,-7072.38291298,0.00039956,120]
[404394439,1770099032084,-243.77433489,0.00025376,2]
[404394440,1770099032094,-195.99551767,0.00027731,2]
[404394441,1770099032103,-783.98207069,0.00027731,2]
[404394442,1770099032113,-235.78468832,0.00029533,2]
[404394443,1770099032122,-3788.72237795,0.00030137,120]
[404394444,1770099032133,-161.6083464,0.00033462,118]
[404394445,1770099032142,-300.0,0.0003356,3]
[404394446,1770099032151,-300.0,0.0003356,3]
[404394447,1770099032160,-300.0,0.0003356,3]
[404394448,1770099032169,-1763.95965905,0.00033563,2]
[404394449,1770099032178,-421.4367987,0.00033563,2]
[404394450,1770099032187,-258.2529174,0.00034142,5]
[404394451,1770099032195,-2962.29150494,0.00034454,2]
[404394452,1770099032206,-664.52707806,0.00034454,2]
[404394453,1770099032215,-298.9604246,0.00034566,2]
[404394454,1770099032225,-2103.91002469,0.00034843,5]
[404394455,1770099032233,-180.87135699,0.00034843,5]
[404394456,1770099032242,-183.9702393,0.00035694,2]
[404394457,1770099032251,-4243.062254,0.00035694,2]
[404394458,1770099032260,-482.18,0.000359,120]
[404394459,1770099032269,-740.91124423,0.00037104,2]
[404394460,1770099032279,-500.0,0.00037587,15]
[404394461,1770099032288,-500.0,0.00037587,15]
[404394463,1770099032298,-500.0,0.00037587,7]
[404394465,1770099032307,-500.0,0.00037587,7]
[404394467,1770099032317,-596.03724552,0.00037587,15]
[404394468,1770099032326,-334.14861832,0.00037587,7]
[404394470,1770099032335,-1031.97865794,0.00038038,5]
[404394473,1770099032345,-398.15,0.000383,30]
[404394474,1770099032354,-181.018,0.00038481,51]
[404394477,1770099032363,-179.64417157,0.00038481,51]
[404394479,1770099032372,-189.161668,0.00038643,2]
[404394480,1770099032381,-300.0,0.00039,2]
[404394483,1770099032392,-209.47509151,0.00039858,12]
[404394484,1770099032401,-349.0,0.00039864,14]
[404394487,1770099032412,-349.0,0.00039864,14]
[404394489,1770099032422,-349.0,0.00039864,14]
[404394490,1770099032431,-349.0,0.00039864,14]
[404394492,1770099032440,-344.0,0.00039864,14]
[404394494,1770099032450,-151.0,0.0003994,14]
[404394496,1770099032459,-151.0,0.0003994,14]
[404394498,1770099032468,-153.60513263,0.0003994,14]
[404394500,1770099032477,-335.0,0.0003994,14]
[404394502,1770099032486,-151.0,0.0003994,14]
[404394504,1770099032495,-335.0,0.0003994,14]
[404394506,1770099032504,-151.0,0.0003994,14]
[404394508,1770099032514,-335.0,0.0003994,14]
[404394510,1770099032523,-151.0,0.0003994,14]
[404394512,1770099032532,-335.0,0.0003994,14]
[404394514,1770099032541,-139.55504705,0.0003994,14]
[404394516,1770099032553,-195.44495295,0.0003994,14]
[404394518,1770099032562,-151.0,0.0003994,14]
[404394520,1770099032571,-34.13152113,0.0003994,14]
[404394624,1770099038253,-300.86847887,0.0003994,14]
[404394634,1770099038335,-151.0,0.0003994,14]
[404394637,1770099038347,-335.0,0.0003994,14]
[404394639,1770099038357,-151.0,0.0003994,14]
[404394641,1770099038366,-335.0,0.0003994,14]
[404394642,1770099038375,-16.62232381,0.0003994,14]
[404394645,1770099038391,-318.37767619,0.0003994,14]
[404394647,1770099038400,-151.0,0.0003994,14]
[404394649,1770099038409,-277.54768891,0.0003994,14]
[404395132,1770099046447,-1780.74102707,0.00039858,2]
[404395133,1770099056543,1043.6,0.0003013,120]
[404395138,1770099185833,10000.01,0.00017,2]
[404395139,1770099185855,10000.01,0.00017,2]
[404395140,1770099185879,10000.01,0.00017,2]
[404395141,1770099185902,10000.01,0.00017,2]
[404395142,1770099185927,10000.01,0.00017,2]
[404395143,1770099185949,10000.01,0.00017,2]
[404395144,1770099185972,10000.01,0.00017,2]
[404395145,1770099185995,10000.01,0.00017,2]
[404395146,1770099186018,10000.01,0.00017,2]
[404395147,1770099186043,10000.01,0.00017,2]
[404395148,1770099188147,-7315.90016835,0.00017,2]
[404395149,1770099188259,-10000.01,0.00017,2]
[404395150,1770099188456,-10000.01,0.00017,2]
[404395151,1770099188574,-10000.01,0.00017,2]
[404395152,1770099188718,-10000.01,0.00017,2]
[404395153,1770099199014,20973.52398133,0.0001,2]
[404395154,1770099199037,25000.0,0.0001,2]
[404395155,1770099199061,25000.0,0.0001,2]
[404395156,1770099199084,1800.43585032,0.0001,2]
[404395157,1770099423305,500.0,0.00013699,2]
[404395158,1770099423331,500.0,0.00013273,2]
[404395159,1770099423357,1000.0,0.00014247,2]
[404395160,1770099423382,1000.0,0.00013821,2]
[404395161,1770099423414,299.97671363,0.00014368,2]
[404395162,1770099425640,361.45042765,0.00014795,2]
[404395163,1770099666216,500.0,0.00013273,2]
[404395164,1770099666274,806.45681059,0.00013821,2]
[404395165,1770099689359,500.0,0.00028799,120]
[404395166,1770099689797,500.0,0.00028799,120]
[404395167,1770099723299,496.82562751,0.00013273,2]
[404395168,1770099989436,500.0,0.00028799,120]
[404395169,1770099989744,500.0,0.00028799,120]
[404395170,1770099990208,500.0,0.00028799,120]
[404395171,1770099990482,555.78929148,0.00028799,120]
[404395185,1770100138118,-4535.30042062,0.0001747,2]
[404395186,1770100138424,-10000.01,0.0001747,2]
[404395187,1770100138706,-10000.01,0.0001747,2]
[404395188,1770100139040,-10000.01,0.0001747,2]
[404395189,1770100139328,-10000.01,0.0001747,2]
[404395190,1770100143879,-300.0,0.00017469,2]
[404395191,1770100143927,-9400.01,0.0001747,2]
[404395192,1770100144351,-30.37108524,0.0001747,2]
[404395193,1770100144376,-9939.26782952,0.0001747,2]
[404395194,1770100146534,168.02488473,0.00013273,2]
[404395198,1770100202146,-5000.0,0.00017454,2]
[404395199,1770100206767,0.01,0.00017454,2]
[404395200,1770100206790,4999.99,0.00017454,2]
[404395231,1770100232214,-5000.0,0.0001749,2]
[404395233,1770100232224,-792.16709817,0.00017667,2]
[404395235,1770100232233,-150.0,0.00017719,2]
[404395236,1770100232242,-150.06066019,0.00017767,2]
[404395237,1770100232254,-150.10285153,0.00017808,2]
[404395238,1770100232264,-208.0,0.00017998,2]
[404395239,1770100232273,-300.0,0.00017998,2]
[404395240,1770100232283,-300.0,0.00017998,2]
[404395241,1770100232294,-300.0,0.00017998,2]
[404395242,1770100232304,-1200.0,0.00017998,2]
[404395243,1770100232313,-412.90925309,0.00017999,2]
[404395244,1770100232322,-679.89186064,0.00018,2]
[404395246,1770100232345,-222407.27296888,0.00018,2]
[404395248,1770100232354,-5581.78630974,0.000188,2]
[404395250,1770100232364,-303.10001603,0.000189,2]
[404395251,1770100232374,-13150.23454168,0.00019,2]
[404395252,1770100232383,-303.10001603,0.00019089,2]
[404395253,1770100232392,-303.10001603,0.00019278,2]
[404395254,1770100232401,-303.10001604,0.00019467,2]
[404395255,1770100232410,-420.0,0.00019638,2]
[404395256,1770100232421,-177.0,0.00019719,2]
[404395257,1770100232433,-1680.0,0.00019734,2]
[404395258,1770100232442,-587.0,0.00021427,2]
[404395259,1770100232451,-406.0,0.00021638,2]
[404395260,1770100232461,-166.05054382,0.00021719,2]
[404395261,1770100232470,-289.5011977,0.0002313,2]
[404395262,1770100232479,-473.0,0.00023379,2]
[404395263,1770100232487,-1000.0,0.00024277,30]
[404395264,1770100232497,-450.89434632,0.000249,2]
[404395265,1770100232506,-289.5011977,0.00025935,2]
[404395266,1770100232515,-300.0,0.00026116,2]
[404395267,1770100232524,-272.0,0.00026686,2]
[404395268,1770100232534,-331.0,0.00027003,2]
[404395269,1770100232543,-295.93003646,0.00027397,2]
[404395270,1770100232552,-150.06066019,0.00028485,2]
[404395271,1770100232561,-289.5011977,0.0002874,2]
[404395272,1770100232570,-150.29811544,0.00028789,2]
[404395273,1770100232579,-1352.68303896,0.0002879,2]
[404395274,1770100232587,-500.0,0.00028799,2]
[404395275,1770100232596,-500.0,0.00028799,2]
[404395276,1770100232605,-500.0,0.00028799,2]
[404395277,1770100232613,-500.0,0.00028799,2]
[404395278,1770100232622,-500.0,0.00028799,2]
[404395279,1770100232631,-584.22952258,0.00028799,2]
[404395280,1770100232640,-200.0,0.00028799,10]
[404395281,1770100232649,-165.13470443,0.00028799,10]
[404395282,1770100232658,-200.0,0.00028799,10]
[404395283,1770100232667,-200.0,0.00028799,10]
[404395284,1770100232676,-134446.38266965,0.000288,5]
[404395285,1770100232687,-445.54528704,0.000288,5]
[404395857,1770100263164,500.0,0.00013699,2]
[404395858,1770100263223,1091.88014411,0.00014247,2]
[404395859,1770100271160,476.44948864,0.00013699,2]
[404395860,1770100272663,500.0,0.00013699,2]
[404395861,1770100272724,1000.0,0.00014247,2]
[404395862,1770100272778,1011.95718996,0.00014795,2]
[404395863,1770100272929,500.0,0.00013273,2]
[404395864,1770100272979,1500.0,0.00014368,2]
[404395865,1770100273006,500.0,0.00013699,2]
[404395866,1770100273034,1500.0,0.00014916,2]
[404395867,1770100273060,1000.0,0.00014247,2]
[404395868,1770100273089,419.72317729,0.00013821,2]
[404395869,1770100273111,580.27682271,0.00013821,2]
[404395870,1770100273139,1500.0,0.00014795,2]
[404395871,1770100273166,753.06435971,0.00015342,2]
[404395872,1770100273973,300.0,0.00013673,2]
[404395873,1770100274005,600.0,0.00014221,2]
[404395874,1770100274061,600.0,0.00014768,2]
[404395875,1770100274842,500.0,0.00013699,2]
[404395876,1770100274875,317.68763522,0.00014247,2]
[404395877,1770100276032,551.20270139,0.00028799,120]
[404395878,1770100327214,500.0,0.00013273,2]
[404395879,1770100327264,1053.44890131,0.00013821,2]
[404395880,1770100328127,500.0,0.00013273,2]
[404395881,1770100328179,1000.0,0.00013821,2]
[404395882,1770100331007,1795.53228105,0.00015342,2]
[404395883,1770100331029,204.46771895,0.00015342,2]
[404395884,1770100331066,2500.0,0.0001589,2]
[404395885,1770100331092,500.0,0.00013273,2]
[404395886,1770100331119,202.68824605,0.00015464,2]
[404395887,1770100331145,1000.0,0.00013821,2]
[404395888,1770100331170,1000.0,0.00014247,2]
[404395889,1770100331196,1500.0,0.00014795,2]
[404395890,1770100331222,501.39030922,0.00013273,2]
[404395891,1770100331248,1500.0,0.00014368,2]
[404395892,1770100331278,1091.46372578,0.00014916,2]
[404395893,1770100331300,908.53627422,0.00014916,2]
[404395894,1770100331326,500.0,0.00013699,2]
[404395895,1770100337350,500.0,0.00013699,2]
[404395896,1770100337381,1000.0,0.00014247,2]
[404395897,1770100337438,501.6271235,0.00014795,2]
[404395901,1770100342754,-1000.0,0.00016438,2]
[404395903,1770100390203,619.58988389,0.00013273,2]
[404395904,1770100396616,500.0,0.00013273,2]
[404395905,1770100396783,561.22050956,0.00013821,2]
[404395906,1770100446291,500.33977898,0.00013699,2]
[404395907,1770100446423,500.0,0.00013273,2]
[404395908,1770100446512,2000.0,0.00014916,2]
[404395909,1770100446547,2500.0,0.00015464,2]
[404395910,1770100446582,1000.0,0.00013821,2]
[404395911,1770100446625,1500.0,0.00014368,2]
[404395912,1770100449066,318.85982757,0.00013273,2]
[404395913,1770100449090,181.14017243,0.00013273,2]
[404395914,1770100449118,1000.0,0.00013821,2]
[404395915,1770100449167,1500.0,0.00014368,2]
[404395916,1770100449222,2000.0,0.00014916,2]
[404395917,1770100449272,487.72506536,0.00015464,2]
[404395918,1770100449884,500.19982092,0.00013273,2]
[404395919,1770100465451,-3014.1403875,0.00016012,2]
[404395920,1770100507740,500.0,0.00013699,2]
[404395921,1770100507796,671.30504098,0.00014247,2]
[404395922,1770100507973,500.0,0.00013273,2]
[404395923,1770100508033,1000.0,0.00013821,2]
[404395924,1770100508088,1300.42418402,0.00014368,2]
[404395925,1770100508115,199.57581598,0.00014368,2]
[404395926,1770100508153,1501.84841022,0.00014916,2]
[404395927,1770100573212,500.0,0.00013273,2]
[404395928,1770100623261,500.0,0.00013699,2]
[404395929,1770100623303,348.51110734,0.00014247,2]
[404395930,1770100623374,178.51822719,0.00013273,2]
[404395931,1770100683695,250.36172066,0.00013699,2]
[404395937,1770100806343,505.5503841,0.00013699,2]
[404395938,1770100806446,500.0,0.00013699,2]
[404395939,1770100844935,-5000.0,0.00017377,2]
[404395955,1770101061071,-5000.0,0.00017378,2]
[404395956,1770101077110,0.01,0.00017378,2]
[404395957,1770101077135,4999.99,0.00017378,2]
[404396034,1770101432653,-933.0,0.00017466,2]
[404396057,1770101439272,-2766.70537582,0.00017466,2]
[404396059,1770101439282,-150.0,0.00017554,2]
[404396061,1770101439292,-150.64487333,0.00019089,2]
[404396063,1770101439302,-177.0,0.00019554,2]
[404396065,1770101439311,-204.0,0.00021554,2]
[404396067,1770101439321,-257.771251,0.00021877,2]
[404396069,1770101439331,-289.5011978,0.00021877,2]
[404396071,1770101439342,-192.0,0.00021931,2]
[404396073,1770101439351,-1317.5339243,0.00021932,2]
[404396075,1770101439361,-1225.8320354,0.00021932,2]
[404396077,1770101439370,-231.0,0.00023554,2]
[404396079,1770101439379,-1225.8320354,0.00024323,2]
[404396081,1770101439388,-1317.5339243,0.00024442,2]
[404396083,1770101439397,-257.771251,0.00024979,2]
[404396085,1770101439407,-258.0,0.00025554,2]
[404396087,1770101439416,-1112.0,0.00025978,2]
[404396089,1770101439425,-1112.0,0.00026027,2]
[404396091,1770101439434,-1112.0,0.000261,2]
[404396093,1770101439443,-1112.0,0.00026273,2]
[404396094,1770101439452,-1112.0,0.00026555,2]
[404396097,1770101439462,-1112.0,0.00026666,2]
[404396098,1770101439471,-1225.8320354,0.00026713,2]
[404396101,1770101439481,-1112.0,0.00026748,2]
[404396102,1770101439490,-177.33747172,0.00026796,2]
[404396104,1770101439499,-500.0,0.00026796,2]
[404396106,1770101439508,-500.0,0.00026796,2]
[404396108,1770101439518,-500.0,0.00026796,2]
[404396110,1770101439527,-500.0,0.00026796,2]
[404396112,1770101439537,-464.6368622,0.00026796,2]
[404396114,1770101439552,-500.0,0.00026796,2]
[404396116,1770101439573,-614.9375486,0.00026796,2]
[404396118,1770101439586,-246.11573407,0.00026796,2]
[404396120,1770101439594,-500.0,0.00026796,2]
[404396121,1770101439603,-1112.0,0.000268,7]
[404396123,1770101439612,-5469.15677539,0.00026897,2]
[404396125,1770101439622,-1317.5339243,0.00026952,2]
[404396127,1770101439632,-1112.0,0.00026973,2]
[404396129,1770101439641,-1112.0,0.00026997,2]
[404396131,1770101439651,-1112.0,0.0002708,2]
[404396133,1770101439660,-1112.0,0.00027087,2]
[404396135,1770101439670,-1112.0,0.00027136,2]
[404396137,1770101439679,-500.0,0.00027205,2]
[404396139,1770101439688,-744.78458729,0.00027205,2]
[404396141,1770101439699,-369.21541271,0.00027205,2]
[404396143,1770101439709,-189.161668,0.00027319,2]
[404396145,1770101439718,-1112.0,0.00027342,2]
[404396147,1770101439727,-500.0,0.00027479,2]
[404396149,1770101439736,-285.0,0.00027554,2]
[404396151,1770101439745,-1112.0,0.00027609,2]
[404396153,1770101439755,-1112.0,0.00027667,2]
[404396155,1770101439767,-459.85777053,0.00027731,2]
[404396157,1770101439776,-827.74398695,0.00027731,2]
[404396159,1770101439786,-233.17732158,0.00027732,2]
[404396161,1770101439796,-932.70928632,0.00027732,2]
[404396163,1770101439807,-2098.59589422,0.00027732,2]
[404396165,1770101439816,-500.0,0.00027753,2]
[404396167,1770101439826,-1112.0,0.00027876,2]
[404396168,1770101439836,-500.0,0.00028027,2]
[404396170,1770101439846,-1112.0,0.00028065,7]
[404396172,1770101439855,-686.80459865,0.00028069,2]
[404396174,1770101439864,-1112.0,0.0002807,2]
[404396176,1770101439874,-257.771251,0.00028081,2]
[404396178,1770101439883,-1112.0,0.00028189,2]
[404396180,1770101439892,-1112.0,0.00028247,2]
[404396182,1770101439901,-500.0,0.00028301,2]
[404396184,1770101439912,-1112.0,0.00028406,2]
[404396186,1770101439922,-1112.0,0.00028478,2]
[404396188,1770101439931,-1112.0,0.00028602,2]
[404396189,1770101439942,-315.62604246,0.0002879,2]
[404396191,1770101439952,-280.66406114,0.00028799,2]
[404396193,1770101439962,-372.95918918,0.00028799,2]
[404396195,1770101439972,-200.0,0.00028799,10]
[404396197,1770101439981,-302818.99554518,0.000288,5]
[404396200,1770101439991,-157.56,0.000288,7]
[404396201,1770101440002,-169.77,0.000288,7]
[404396203,1770101440011,-168.11,0.000288,7]
[404396205,1770101440021,-1225.8320354,0.00029104,2]
[404396207,1770101440030,-661.37083457,0.00029239,2]
[404396209,1770101440040,-1190.46750223,0.00029239,2]
[404396211,1770101440050,-1317.5339243,0.00029462,2]
[404396213,1770101440059,-303.84792777,0.00029554,2]
[404396215,1770101440067,-150.64487333,0.00029776,2]
[404396217,1770101440077,-189.161668,0.00030194,2]
[404396219,1770101440086,-167.44288829,0.00030287,2]
[404396221,1770101440095,-257.771251,0.00031183,2]
[404396223,1770101440105,-2116.38667063,0.00031864,2]
[404396225,1770101440114,-1236.24827758,0.00031864,2]
[404396227,1770101440123,-210.41736164,0.0003199,2]
[404396229,1770101440133,-214.05360635,0.00031999,10]
[404396231,1770101440142,-508.21,0.00031999,10]
[404396233,1770101440152,-17923.78301823,0.00032,2]
[404396235,1770101440164,-6298.74026498,0.00032,2]
[404396315,1770101440934,-831.8568107,0.00032,2]
[404396760,1770101446774,-1000.0,0.00024,6]
[404396761,1770101446784,-111262.11351494,0.00032,2]
[404396762,1770101446795,-156.969631,0.00032,31]
[404396763,1770101446805,-151.0,0.00032,31]
[404396764,1770101446815,-151.0,0.00032,31]
[404396765,1770101446824,-151.0,0.00032,31]
[404396766,1770101446834,-237.82986231,0.00032,2]
[404396767,1770101446843,-740.91124423,0.00032208,2]
[404396768,1770101446853,-219.851,0.0003221,31]
[404396769,1770101446862,-1041.66666667,0.00032212,2]
[404396770,1770101446871,-151.0,0.00032877,31]
[404396776,1770101446880,-151.0,0.00032877,31]
[404396778,1770101446988,-189.161668,0.00033069,2]
[404396779,1770101446998,-967.52,0.000353,14]
[404396780,1770101447007,-286.869321,0.0003549,60]
[404396781,1770101447017,-330.21235,0.00035616,31]
[404396782,1770101447026,-330.21235,0.00035616,31]
[404396783,1770101447036,-330.21235,0.00035616,31]
[404396785,1770101447049,-330.21235,0.00035616,31]
[404396787,1770101447059,-151.0,0.00035616,31]
[404396789,1770101447068,-151.0,0.00035616,31]
[404396790,1770101447077,-500.0,0.00035635,2]
[404396791,1770101447087,-500.0,0.00035635,2]
[404396792,1770101447096,-509.29562535,0.00035635,2]
[404396793,1770101447106,-462.362144,0.00035648,60]
[404396794,1770101447115,-580.294375,0.00035648,60]
[404396795,1770101447124,-286.869322,0.00035648,60]
[404396796,1770101447133,-1492.4260828,0.00037878,5]
[404396797,1770101447143,-180.99321188,0.00037878,5]
[404396798,1770101447152,-723.24887467,0.00037878,5]
[404396799,1770101447162,-373.4800007,0.00037878,5]
[404396800,1770101447171,-307.24541196,0.00037878,5]
[404396801,1770101447180,-1227.75266621,0.00037878,5]
[404396802,1770101447190,-605.32430857,0.00037878,5]
[404396803,1770101447200,-666.66666666,0.00038765,2]
[404396804,1770101447210,-209.47509151,0.0003887,11]
[404396805,1770101447220,-166.0,0.00039923,14]
[404396806,1770101447229,-166.0,0.00039923,14]
[404396807,1770101447238,-167.0,0.00039923,14]
[404396808,1770101447248,-167.0,0.00039923,14]
[404396809,1770101447258,-167.0,0.00039923,14]
[404396810,1770101447268,-167.0,0.00039923,14]
[404396811,1770101447277,-165.95021591,0.00039923,14]
[404396812,1770101447286,-292.0,0.00039923,14]
[404396813,1770101447296,-335.0,0.00039923,14]
[404396814,1770101447306,-335.0,0.00039923,14]
[404396815,1770101447315,-335.0,0.00039923,14]
[404396816,1770101447324,-335.0,0.00039923,14]
[404396817,1770101447334,-335.0,0.00039923,14]
[404396818,1770101447344,-335.0,0.00039923,14]
[404396819,1770101447354,-335.0,0.00039923,14]
[404396820,1770101447364,-335.0,0.00039923,14]
[404396821,1770101447373,-335.0,0.00039923,14]
[404396822,1770101447382,-335.0,0.00039923,14]
[404396823,1770101447395,-335.0,0.00039923,14]
[404396824,1770101447404,-335.0,0.00039923,14]
[404396825,1770101447414,-335.0,0.00039923,14]
[404396826,1770101447423,-335.0,0.00039923,14]
[404396827,1770101447433,-335.0,0.00039923,14]
[404396828,1770101447444,-335.0,0.00039923,14]
[404396829,1770101447454,-335.0,0.00039923,14]
[404396830,1770101447464,-335.0,0.00039923,14]
[404396831,1770101447474,-335.0,0.00039923,14]
[404396832,1770101447483,-335.0,0.00039923,14]
[404396833,1770101447492,-195.43253224,0.00039923,14]
[404396834,1770101447502,-151.0,0.00039923,14]
[404396835,1770101447511,-151.0,0.00039923,14]
[404396836,1770101447523,-164.0,0.00039923,14]
[404396837,1770101447532,-335.0,0.00039923,14]
[404396838,1770101447542,-335.0,0.00039923,14]
[404396839,1770101447551,-335.0,0.00039923,14]
[404396840,1770101447561,-335.0,0.00039923,14]
[404396841,1770101447570,-392.45231109,0.00039923,14]
[404396842,1770101447579,-177.0,0.00039923,14]
[404396843,1770101447588,-177.0,0.00039923,14]
[404396844,1770101447598,-178.12010195,0.00039923,14]
[404396845,1770101447607,-166.0,0.00039923,14]
[404396846,1770101447617,-349.0,0.00039923,14]
[404396847,1770101447626,-349.0,0.00039923,14]
[404396848,1770101447635,-166.0,0.00039923,14]
[404396849,1770101447644,-270.94721822,0.00039923,14]
[404396850,1770101447653,-166.0,0.00039923,14]
[404396851,1770101447662,-151.0,0.00039923,14]
[404396852,1770101447671,-349.0,0.00039923,14]
[404396853,1770101447681,-152.0,0.00039923,14]
[404396854,1770101447691,-151.0,0.00039923,14]
[404396855,1770101447700,-166.0,0.00039923,14]
[404396856,1770101447709,-349.0,0.00039923,14]
[404396857,1770101447718,-152.0,0.00039923,14]
[404396858,1770101447728,-151.0,0.00039923,14]
[404396859,1770101447739,-166.0,0.00039923,14]
[404396860,1770101447749,-152.0,0.00039923,14]
[404396861,1770101447759,-172.0,0.00039923,14]
[404396862,1770101447772,-151.0,0.00039923,14]
[404396863,1770101447782,-152.0,0.00039923,14]
[404396864,1770101447791,-151.0,0.00039923,14]
[404396865,1770101447801,-151.0,0.00039923,14]
[404396866,1770101447812,-152.0,0.00039923,14]
[404396867,1770101447824,-152.0,0.00039923,14]
[404396868,1770101447838,-151.0,0.00039923,14]
[404396869,1770101447852,-349.0,0.00039923,14]
[404396870,1770101447866,-152.0,0.00039923,14]
[404396871,1770101447879,-151.0,0.00039923,14]
[404396872,1770101447890,-349.0,0.00039923,14]
[404396873,1770101447901,-152.0,0.00039923,14]
[404396874,1770101447916,-292.0,0.00039923,14]
[404396875,1770101447928,-349.0,0.00039923,14]
[404396876,1770101447941,-152.0,0.00039923,14]
[404396877,1770101447955,-227.75225148,0.00039923,14]
[404396878,1770101447968,-349.0,0.00039923,14]
[404396879,1770101447981,-152.0,0.00039923,14]
[404396880,1770101447994,-349.0,0.00039923,14]
[404396881,1770101448006,-152.0,0.00039923,14]
[404396882,1770101448019,-152.0,0.00039923,14]
[404396883,1770101448031,-349.0,0.00039923,14]
[404396884,1770101448043,-168.0,0.00039923,14]
[404396885,1770101448056,-152.0,0.00039923,14]
[404396886,1770101448069,-349.0,0.00039923,14]
[404396887,1770101448080,-168.0,0.00039923,14]
[404396888,1770101448093,-233.17693836,0.00039923,14]